bitfinex/quotes_BTCUSD_20250916
["timestamp","ask_amount","ask_price","bid_price","bid_amount"]
[1758028941449,0.02975,115660.0,115650.0,1.01098761]
[1758028942187,0.03075,115660.0,115650.0,1.01108761]
[1758028942410,0.0014,115660.0,115650.0,1.42263819]
[1758028942817,0.0034,115660.0,115650.0,1.45793956]
[1758028943022,0.0034,115660.0,115650.0,1.44943956]
[1758028943426,0.0024,115660.0,115650.0,1.44943956]
[1758028943634,0.0004,115660.0,115650.0,1.44943956]
[1758028944046,0.0024,115660.0,115650.0,1.44943956]
[1758028944470,0.0004,115660.0,115650.0,1.44943956]
[1758028944682,0.0004,115660.0,115650.0,1.84943956]
[1758028945316,0.0004,115660.0,115650.0,1.84861956]
[1758028945524,0.0014,115660.0,115650.0,1.84861956]
[1758028945747,0.0014,115660.0,115650.0,1.9135677]
[1758028945954,0.0004,115660.0,115650.0,1.9145677]
[1758028946370,0.0004,115660.0,115650.0,1.9155677]
[1758028946571,0.0004,115660.0,115650.0,1.9163877]
[1758028947584,0.00552,115660.0,115650.0,1.50401712]
[1758028947797,0.02975,115660.0,115650.0,1.09246654]
[1758028948241,0.02975,115660.0,115650.0,1.51251712]
[1758028949876,0.02975,115660.0,115650.0,1.9240677]
[1758028949877,0.0004,115660.0,115650.0,1.9240677]
[1758028950124,0.00552,115660.0,115650.0,1.9240677]
[1758028950596,0.00552,115660.0,115650.0,1.51251712]
[1758028950814,0.02975,115660.0,115650.0,1.51251712]
[1758028954222,0.0296,115660.0,115650.0,1.51251712]
[1758028961617,0.0296,115660.0,115650.0,1.10096654]
[1758028961860,0.44115058,115660.0,115650.0,1.10096654]
[1758028962104,0.0296,115660.0,115650.0,1.10096654]
[1758028962555,0.0296,115660.0,115650.0,1.09146654]
[1758028963443,0.0296,115660.0,115650.0,1.09046654]
[1758028967232,0.03801772,115660.0,115650.0,1.06448517]
[1758028967676,0.03801772,115660.0,115650.0,1.47603575]
[1758028969630,0.03801772,115660.0,115650.0,1.06448517]
[1758028969815,0.03801772,115660.0,115650.0,1.47603575]
[1758028972070,0.0296,115660.0,115650.0,1.47603575]
[1758028972300,0.03801772,115660.0,115650.0,1.47603575]
[1758028975900,0.03801772,115660.0,115650.0,1.06448517]
[1758028976079,0.0296,115660.0,115650.0,1.06448517]
[1758028977685,0.00552,115660.0,115650.0,1.43027811]
[1758028977890,0.0004,115660.0,115650.0,1.43109811]
[1758028978532,0.0004,115660.0,115650.0,1.44001583]
[1758028979429,0.0004,115660.0,115650.0,1.43919583]
[1758028981595,0.0056,115660.0,115650.0,1.43919583]
[1758028982703,0.0024,115660.0,115650.0,1.43919583]
[1758028983148,0.0056,115660.0,115650.0,1.43919583]
[1758028983551,0.02951,115660.0,115650.0,1.43919583]
[1758028984888,0.02951,115660.0,115650.0,1.07340289]
[1758028985552,0.02951,115660.0,115650.0,1.43919583]
[1758028987337,0.0004,115660.0,115650.0,1.43919583]
[1758028987560,0.0004,115660.0,115650.0,1.44001583]
[1758028990490,0.0004,115660.0,115650.0,1.44101583]
[1758028991115,0.0004,115660.0,115650.0,1.44201583]
[1758028992995,0.00256,115660.0,115650.0,1.44119583]
[1758028993230,0.00554,115660.0,115650.0,1.44119583]
[1758028993469,0.00256,115660.0,115650.0,1.44119583]
[1758028994606,0.0004,115660.0,115650.0,1.44119583]
[1758028995950,0.0004,115660.0,115650.0,1.44201583]
[1758028998127,0.0004,115660.0,115650.0,1.44119583]
[1758028998346,0.0004,115660.0,115650.0,1.44201583]
[1758029000496,0.0004,115660.0,115650.0,1.45051583]
[1758029003802,0.0004,115660.0,115650.0,1.44969583]
[1758029004032,0.0004,115660.0,115650.0,1.45051583]
[1758029006401,0.0004,115660.0,115650.0,1.44201583]
[1758029011391,0.0004,115660.0,115650.0,1.45051583]
[1758029019471,0.0005,115670.0,115650.0,1.44969583]
[1758029019685,0.0005,115670.0,115660.0,0.98332707]
[1758029019686,0.00064177,115670.0,115660.0,0.98332707]
[1758029019930,0.0005,115680.0,115670.0,0.51290567]
[1758029020136,0.0005,115680.0,115670.0,0.96520006]
[1758029020352,0.0004,115680.0,115670.0,1.731813]
[1758029020561,0.0004,115680.0,115670.0,1.36602006]
[1758029020805,0.0004,115680.0,115670.0,1.39199452]
[1758029021051,0.0005,115690.0,115680.0,0.51289073]
[1758029021258,0.0005,115690.0,115680.0,0.97368512]
[1758029021493,0.0005,115690.0,115680.0,0.97450512]
[1758029021934,0.0004,115690.0,115680.0,1.37450512]
[1758029022187,0.00044724,115690.0,115680.0,1.38300392]
[1758029022390,0.00144724,115690.0,115680.0,1.408158]
[1758029022601,0.00244724,115690.0,115680.0,1.408158]
[1758029022854,0.00244724,115690.0,115680.0,1.47301142]
[1758029023518,0.00244724,115690.0,115680.0,1.47311142]
[1758029023948,0.00144724,115690.0,115680.0,1.47311142]
[1758029024383,0.00244724,115690.0,115680.0,1.47311142]
[1758029024628,0.00044724,115690.0,115680.0,1.47311142]
[1758029024825,0.00144724,115690.0,115680.0,1.47311142]
[1758029025189,0.00044724,115690.0,115680.0,1.47311142]
[1758029025395,0.00044724,115690.0,115680.0,1.47393142]
[1758029025656,0.00044724,115690.0,115680.0,1.47493142]
[1758029026534,0.00044724,115690.0,115680.0,1.47411142]
[1758029026979,0.00260724,115690.0,115680.0,1.47411142]
[1758029027190,0.00044724,115690.0,115680.0,1.47411142]
[1758029029483,0.00044724,115690.0,115680.0,1.84072436]
[1758029029714,0.0004,115700.0,115690.0,0.87866872]
[1758029029928,0.0004,115700.0,115690.0,0.96517017]
[1758029030113,0.0004,115700.0,115690.0,0.96599017]
[1758029030328,0.0004,115700.0,115690.0,1.36599017]
[1758029031266,0.02878,115700.0,115690.0,1.02296723]
[1758029031485,0.02878,115700.0,115690.0,1.38886017]
[1758029031716,0.02878,115700.0,115690.0,1.02306723]
[1758029031941,0.02878,115700.0,115690.0,1.38886017]
[1758029032617,0.02878,115700.0,115690.0,1.02306723]
[1758029032834,0.02878,115700.0,115690.0,1.38886017]
[1758029036024,0.02878,115700.0,115690.0,1.02306723]
[1758029037347,0.02878,115700.0,115690.0,1.38886017]
[1758029038013,0.02878,115700.0,115690.0,1.43427853]
[1758029038495,0.00569,115700.0,115690.0,1.43427853]
[1758029038701,0.02821,115700.0,115690.0,1.43427853]
[1758029039579,0.4394213,115700.0,115690.0,1.02306723]
[1758029039808,0.4394213,115700.0,115690.0,0.59947723]
[1758029040028,0.02821,115700.0,115690.0,0.59947723]
[1758029040444,0.4394213,115700.0,115690.0,0.25947723]
[1758029041134,0.02821,115700.0,115690.0,0.25947723]
[1758029041363,0.44783902,115700.0,115690.0,0.25947723]
[1758029041591,0.4394213,115700.0,115690.0,0.25947723]
[1758029042280,0.02821,115700.0,115690.0,0.25947723]
[1758029042501,0.44783902,115700.0,115690.0,0.25947723]
[1758029042725,0.4394213,115700.0,115690.0,0.25947723]
[1758029042952,0.4395213,115700.0,115690.0,0.25947723]
[1758029043951,0.4405213,115700.0,115690.0,0.25947723]
[1758029044201,0.4425213,115700.0,115690.0,0.25947723]
[1758029046141,0.61538214,115700.0,115690.0,0.25947723]
[1758029046624,0.61538214,115700.0,115690.0,0.08660145]
[1758029046852,0.64553404,115700.0,115690.0,0.0001]
[1758029047302,0.67151462,115700.0,115690.0,0.0001]
[1758029048215,0.17287578,115690.0,115680.0,0.06495342]
[1758029048435,0.58408708,115690.0,115680.0,0.15145487]
[1758029048646,0.61000708,115690.0,115680.0,0.15145487]
[1758029048865,0.61224708,115690.0,115680.0,0.15145487]
[1758029049085,0.61224708,115690.0,115680.0,0.06495342]
[1758029049526,0.61224708,115690.0,115680.0,0.23784415]
[1758029050376,0.61224708,115690.0,115680.0,0.06495342]
[1758029050595,0.61224708,115690.0,115680.0,0.06485342]
[1758029051031,0.61224708,115690.0,115670.0,0.17300567]
[1758029051195,0.17511578,115690.0,115680.0,0.06567763]
[1758029051366,0.17289073,115680.0,115670.0,0.25955436]
[1758029051572,0.58624203,115680.0,115670.0,0.25955436]
[1758029051776,0.61216203,115680.0,115670.0,0.25955436]
[1758029051982,0.4393713,115680.0,115670.0,0.25955436]
[1758029052657,0.02816,115680.0,115670.0,0.25955436]
[1758029052863,0.4393713,115680.0,115670.0,0.25955436]
[1758029053983,0.4413713,115680.0,115670.0,0.25955436]
[1758029054215,0.4423713,115680.0,115670.0,0.25955436]
[1758029055602,0.03116,115680.0,115670.0,0.25955436]
[1758029055799,0.45078902,115680.0,115670.0,0.25955436]
[1758029056024,0.61526203,115680.0,115670.0,0.25955436]
[1758029060544,0.4423713,115680.0,115670.0,0.25955436]
[1758029061140,0.61526203,115680.0,115670.0,0.25955436]
[1758029061749,0.4423713,115680.0,115670.0,0.25955436]
[1758029062172,0.03116,115680.0,115670.0,0.25955436]
[1758029062415,0.4423713,115680.0,115670.0,0.25955436]
[1758029064077,0.61526203,115680.0,115670.0,0.25955436]
[1758029064265,0.4423713,115680.0,115670.0,0.25955436]
[1758029065119,0.61526203,115680.0,115670.0,0.25955436]
[1758029065248,0.4423713,115680.0,115670.0,0.25955436]
[1758029076350,0.4143113,115680.0,115670.0,0.25955436]
[1758029076570,0.00846,115680.0,115670.0,0.25955436]
[1758029076784,0.0031,115680.0,115670.0,0.67076566]
[1758029077407,0.0031,115680.0,115670.0,1.07076566]
[1758029077616,0.0031,115680.0,115670.0,0.67076566]
[1758029078828,0.0031,115680.0,115670.0,0.25955436]
[1758029079041,0.00526,115680.0,115670.0,0.67076566]
[1758029079249,0.00846,115680.0,115670.0,0.67076566]
[1758029079460,0.03206,115680.0,115670.0,0.67076566]
[1758029080097,0.00846,115680.0,115670.0,0.67076566]
[1758029080509,0.0031,115680.0,115670.0,0.67076566]
[1758029081562,0.0031,115680.0,115670.0,0.67158566]
[1758029085083,0.0031,115680.0,115670.0,1.07158566]
[1758029086365,0.0031,115680.0,115670.0,0.66037436]
[1758029086585,0.0031,115680.0,115670.0,1.07158566]
[1758029086844,0.0011,115680.0,115670.0,1.07158566]
[1758029087359,0.0001,115680.0,115670.0,1.07258566]
[1758029088697,0.0011,115680.0,115670.0,1.07258566]
[1758029089208,0.0001,115680.0,115670.0,1.07258566]
[1758029089409,0.0001,115680.0,115670.0,1.07358566]
[1758029094341,0.0001,115680.0,115670.0,1.41358566]
[1758029094786,0.0001,115680.0,115670.0,1.82479696]
[1758029095247,0.0001,115690.0,115680.0,0.17289073]
[1758029095436,0.0001,115690.0,115680.0,0.67142348]
[1758029096129,0.0001,115690.0,115680.0,1.07142348]
[1758029096921,0.0001,115690.0,115680.0,1.08263478]
[1758029097140,0.0001,115690.0,115680.0,1.08273478]
[1758029097881,0.0001,115690.0,115680.0,0.62581547]
[1758029100118,0.0001,115690.0,115680.0,0.69088305]
[1758029100349,0.01177069,115690.0,115680.0,0.32455976]
[1758029100611,0.03537069,115690.0,115680.0,0.32455976]
[1758029100842,0.20824647,115690.0,115680.0,0.32455976]
[1758029101034,0.03537069,115690.0,115680.0,0.32455976]
[1758029101256,0.03537069,115690.0,115680.0,0.69006305]
[1758029101479,0.00670069,115690.0,115680.0,0.69006305]
[1758029101691,0.01177069,115690.0,115680.0,0.69006305]
[1758029101907,0.03537069,115690.0,115680.0,0.69006305]
[1758029102128,0.03837069,115690.0,115680.0,0.69006305]
[1758029103023,0.01477069,115690.0,115680.0,0.69006305]
[1758029103447,0.03837069,115690.0,115680.0,0.69006305]
[1758029110252,0.21966419,115690.0,115680.0,0.32455976]
[1758029110465,0.21966419,115690.0,115680.0,0.15166903]
[1758029110466,0.21124647,115690.0,115680.0,0.15166903]
[1758029114285,0.21124647,115690.0,115680.0,0.06506758]
[1758029114286,0.60690166,115690.0,115680.0,0.06506758]
[1758029114530,0.17289073,115680.0,115670.0,0.17305255]
[1758029114764,0.19901073,115680.0,115670.0,0.259554]
[1758029114967,0.20117073,115680.0,115670.0,0.259554]
[1758029115136,0.20127073,115680.0,115670.0,0.259554]
[1758029116994,0.20989592,115680.0,115670.0,0.259554]
[1758029117157,0.20127073,115680.0,115670.0,0.259554]
[1758029117365,0.20127073,115680.0,115670.0,0.08664869]
[1758029117566,0.20127073,115680.0,115670.0,0.25955436]
[1758029118417,0.20627073,115680.0,115670.0,0.25955436]
[1758029118824,0.20427073,115680.0,115670.0,0.25955436]
[1758029119257,0.20627073,115680.0,115670.0,0.25955436]
[1758029121288,0.20627073,115680.0,115670.0,0.08664869]
[1758029121892,0.57177402,115680.0,115670.0,0.08654869]
[1758029124716,0.57177402,115680.0,115670.0,0.25945436]
[1758029125582,0.20627073,115680.0,115670.0,0.25945436]
[1758029127562,0.17799073,115680.0,115670.0,0.25945436]
[1758029127795,0.0051,115680.0,115670.0,0.25945436]
[1758029128016,0.01351772,115680.0,115670.0,0.25945436]
[1758029128224,0.01351772,115680.0,115670.0,0.62495765]
[1758029128378,0.04179772,115680.0,115670.0,0.62495765]
[1758029128587,0.21468845,115680.0,115670.0,0.25945436]
[1758029128798,0.20627073,115680.0,115670.0,0.25945436]
[1758029131076,0.03338,115680.0,115670.0,0.25945436]
[1758029131340,0.21468845,115680.0,115670.0,0.25945436]
[1758029131573,0.0051,115680.0,115670.0,0.62577765]
[1758029131809,0.0051,115680.0,115670.0,0.26027436]
[1758029132035,0.0051,115680.0,115670.0,0.62577765]
[1758029132491,0.0031,115680.0,115670.0,0.62495765]
[1758029132917,0.0051,115680.0,115670.0,0.62495765]
[1758029133325,0.01351772,115680.0,115670.0,0.62495765]
[1758029133758,0.01878772,115680.0,115670.0,0.62495765]
[1758029134372,0.01151772,115680.0,115670.0,0.62495765]
[1758029134876,0.01351772,115680.0,115670.0,0.62495765]
[1758029135104,0.01563772,115680.0,115670.0,0.25945436]
[1758029135323,0.21475845,115680.0,115670.0,0.25945436]
[1758029135536,0.20634073,115680.0,115670.0,0.25945436]
[1758029137577,0.03345,115680.0,115670.0,0.25945436]
[1758029137795,0.04186772,115680.0,115670.0,0.25945436]
[1758029138004,0.21475845,115680.0,115670.0,0.25945436]
[1758029138223,0.20634073,115680.0,115670.0,0.25945436]
[1758029139732,0.20634073,115680.0,115670.0,0.08654869]
[1758029139955,0.20634073,115680.0,115670.0,0.25945436]
[1758029140177,0.57184402,115680.0,115670.0,0.08654869]
[1758029140642,0.20634073,115680.0,115670.0,0.08654869]
[1758029141770,0.20634073,115680.0,115670.0,0.25945436]
[1758029142651,0.20634073,115680.0,115670.0,0.08654869]
[1758029144540,0.20634073,115680.0,115670.0,0.25945436]
[1758029146185,0.20634073,115680.0,115670.0,0.08654869]
[1758029148200,0.20634073,115680.0,115670.0,4.724e-05]
[1758029148599,0.57184402,115680.0,115670.0,4.724e-05]
[1758029150799,0.59782838,115680.0,115670.0,4.724e-05]
[1758029158144,0.62798028,115680.0,115670.0,4.724e-05]
[1758029159932,0.67404069,115680.0,115670.0,4.724e-05]
[1758029162530,1.08560439,115680.0,115670.0,4.724e-05]
[1758029165084,0.67404069,115680.0,115670.0,4.724e-05]
[1758029168182,1.08560439,115680.0,115670.0,4.724e-05]
[1758029168400,0.67404069,115680.0,115670.0,4.724e-05]
[1758029169055,0.65096069,115680.0,115670.0,4.724e-05]
[1758029169279,0.67547069,115680.0,115670.0,4.724e-05]
[1758029177216,1.08703439,115680.0,115670.0,4.724e-05]
[1758029177426,0.67547069,115680.0,115670.0,4.724e-05]
[1758029181418,0.69145535,115680.0,115670.0,4.724e-05]
[1758029182155,0.67547069,115680.0,115670.0,4.724e-05]
[1758029183045,0.26390699,115680.0,115670.0,4.724e-05]
[1758029183329,0.23412699,115680.0,115670.0,0.17295291]
[1758029183584,0.64569069,115680.0,115670.0,0.17295291]
[1758029183802,0.67535069,115680.0,115670.0,4.724e-05]
[1758029184476,0.67535069,115680.0,115670.0,0.17295291]
[1758029185798,0.67535069,115680.0,115670.0,4.724e-05]
[1758029187593,0.76084341,115680.0,115670.0,4.724e-05]
[1758029188002,0.67535069,115680.0,115670.0,4.724e-05]
[1758029190731,0.64519879,115680.0,115670.0,4.724e-05]
[1758029194328,0.64519879,115680.0,115670.0,0.17295291]
[1758029194964,0.23363509,115680.0,115670.0,0.17295291]
[1758029195136,0.64519879,115680.0,115670.0,4.724e-05]
[1758029198032,0.23363509,115680.0,115670.0,4.724e-05]
[1758029198241,0.64519879,115680.0,115670.0,4.724e-05]
[1758029203874,0.62068879,115680.0,115670.0,0.17295291]
[1758029204079,0.61553879,115680.0,115670.0,0.17295291]
[1758029204285,0.61749879,115680.0,115670.0,4.724e-05]
[1758029204501,0.64362879,115680.0,115670.0,4.724e-05]
[1758029205143,0.64362879,115680.0,115670.0,0.17295291]
[1758029206367,0.64362879,115680.0,115670.0,4.724e-05]
[1758029207537,0.23206509,115680.0,115670.0,4.724e-05]
[1758029207770,0.64362879,115680.0,115670.0,4.724e-05]
[1758029210149,0.72594932,115680.0,115670.0,4.724e-05]
[1758029211925,0.64362879,115680.0,115670.0,4.724e-05]
[1758029212982,0.23206509,115680.0,115670.0,4.724e-05]
[1758029213184,0.64362879,115680.0,115670.0,4.724e-05]
[1758029214230,0.64362879,115680.0,115670.0,0.17295291]
[1758029214627,0.23206509,115680.0,115670.0,4.724e-05]
[1758029214888,0.64362879,115680.0,115670.0,0.17295291]
[1758029215539,0.23206509,115680.0,115670.0,0.17295291]
[1758029215979,0.64362879,115680.0,115670.0,4.724e-05]
[1758029216196,0.20908509,115680.0,115670.0,0.17295291]
[1758029216404,0.64362879,115680.0,115670.0,0.17295291]
[1758029217244,0.64362879,115680.0,115670.0,4.724e-05]
[1758029219610,0.64362879,115680.0,115670.0,0.17295291]
[1758029220026,0.23206509,115680.0,115670.0,0.17295291]
[1758029220454,0.64362879,115680.0,115670.0,0.17295291]
[1758029221534,0.64362879,115680.0,115670.0,4.724e-05]
[1758029221979,0.23206509,115680.0,115670.0,0.17295291]
[1758029222658,0.23206509,115680.0,115670.0,4.724e-05]
[1758029222904,0.23206509,115680.0,115670.0,0.17295291]
[1758029223126,0.23206509,115680.0,115670.0,4.724e-05]
[1758029225261,0.59783593,115680.0,115670.0,4.724e-05]
[1758029228379,0.23206509,115680.0,115670.0,4.724e-05]
[1758029228820,0.30980633,115680.0,115670.0,4.724e-05]
[1758029229226,0.67557717,115680.0,115670.0,4.724e-05]
[1758029229654,0.30980633,115680.0,115670.0,4.724e-05]
[1758029229865,0.67557717,115680.0,115670.0,4.724e-05]
[1758029233250,0.59783593,115680.0,115670.0,4.724e-05]
[1758029233461,0.23206509,115680.0,115670.0,4.724e-05]
[1758029233668,0.59783593,115680.0,115670.0,4.724e-05]
[1758029238525,0.23206509,115680.0,115670.0,4.724e-05]
[1758029239000,0.59783593,115680.0,115670.0,4.724e-05]
[1758029239647,0.70572907,115680.0,115670.0,4.724e-05]
[1758029240347,1.07149991,115680.0,115670.0,4.724e-05]
[1758029240554,1.41149991,115680.0,115670.0,4.724e-05]
[1758029240758,1.4537577,115680.0,115670.0,4.724e-05]
[1758029240896,1.45984126,115680.0,115670.0,4.724e-05]
[1758029241744,1.45784126,115680.0,115670.0,4.724e-05]
[1758029241946,1.46084126,115680.0,115670.0,4.724e-05]
[1758029242355,1.4547577,115680.0,115670.0,4.724e-05]
[1758029243158,1.4517577,115680.0,115670.0,4.724e-05]
[1758029243481,1.4557577,115680.0,115670.0,0.00104724]
[1758029244029,1.42971502,115680.0,115670.0,0.00104724]
[1758029244597,1.06394418,115680.0,115670.0,0.00104724]
[1758029245020,0.68195823,115680.0,115670.0,0.00104724]
[1758029245224,0.96998783,115680.0,115670.0,0.00104724]
[1758029245431,0.62043024,115680.0,115670.0,0.00104724]
[1758029245649,0.96998783,115680.0,115670.0,0.00104724]
[1758029246040,0.98620106,115680.0,115670.0,0.00104724]
[1758029246613,1.07270251,115680.0,115670.0,0.00104724]
[1758029246825,0.98620106,115680.0,115670.0,0.00104724]
[1758029248358,0.98619894,115680.0,115670.0,0.00104724]
[1758029248554,0.6204281,115680.0,115670.0,0.00104724]
[1758029248982,0.98619894,115680.0,115670.0,0.00104724]
[1758029249217,0.94700783,115680.0,115670.0,0.00104724]
[1758029249659,0.94189783,115680.0,115670.0,0.00104724]
[1758029249867,0.96541783,115680.0,115670.0,0.00104724]
[1758029250084,0.59964699,115680.0,115670.0,0.00104724]
[1758029250296,0.96541783,115680.0,115670.0,0.00104724]
[1758029250509,0.62388411,115680.0,115670.0,0.00104724]
[1758029250723,0.98965495,115680.0,115670.0,0.00104724]
[1758029250939,0.62388411,115680.0,115670.0,0.00104724]
[1758029251152,0.98965495,115680.0,115670.0,0.00104724]
[1758029251579,0.62388411,115680.0,115670.0,0.00104724]
[1758029251842,0.98965495,115680.0,115670.0,0.00104724]
[1758029252043,0.59964699,115680.0,115670.0,0.00104724]
[1758029252261,0.96541783,115680.0,115670.0,0.00104724]
[1758029252681,0.59964699,115680.0,115670.0,0.00104724]
[1758029253140,0.96541783,115680.0,115670.0,0.00104724]
[1758029254869,0.97058783,115680.0,115670.0,0.00104724]
[1758029256592,1.05708928,115680.0,115670.0,0.00104724]
[1758029259428,0.97058783,115680.0,115670.0,0.00104724]
[1758029260670,0.60481699,115680.0,115670.0,0.00104724]
[1758029260874,0.97058783,115680.0,115670.0,0.00104724]
[1758029262339,0.60481699,115680.0,115670.0,0.00104724]
[1758029262544,0.97058783,115680.0,115670.0,0.00104724]
[1758029263276,1.05708928,115680.0,115670.0,0.00104724]
[1758029271549,0.97058783,115680.0,115670.0,0.00104724]
[1758029273810,0.60481699,115680.0,115670.0,0.00104724]
[1758029274022,0.97058783,115680.0,115670.0,0.00104724]
[1758029274684,0.60481699,115680.0,115670.0,0.00104724]
[1758029275073,0.97058783,115680.0,115670.0,0.00104724]
[1758029275645,1.05708928,115680.0,115670.0,0.00104724]
[1758029279382,1.07331728,115680.0,115670.0,0.00104724]
[1758029280939,1.07940311,115680.0,115670.0,0.00104724]
[1758029281555,1.44517395,115680.0,115670.0,0.00104724]
[1758029282666,1.07940311,115680.0,115670.0,0.00045588]
[1758029283970,1.53686919,115680.0,115670.0,0.00045588]
[1758029284613,0.71363227,115680.0,115670.0,0.00045588]
[1758029284870,1.53686841,115680.0,115670.0,0.00045588]
[1758029287488,1.62336986,115680.0,115670.0,0.00045588]
[1758029287920,0.80013294,115680.0,115670.0,0.00045588]
[1758029288143,1.62336986,115680.0,115670.0,0.00045588]
[1758029288568,1.62336506,115680.0,115670.0,0.00045588]
[1758029293092,0.71362669,115680.0,115670.0,0.00045588]
[1758029293311,1.53686361,115680.0,115670.0,0.00045588]
[1758029295572,1.53685907,115680.0,115670.0,0.00045588]
[1758029296944,0.71362215,115680.0,115670.0,0.00045588]
[1758029297160,1.53685907,115680.0,115670.0,0.00045588]
[1758029297586,1.62336052,115680.0,115670.0,0.00045588]
[1758029298976,0.8001236,115680.0,115670.0,0.00045588]
[1758029299185,1.61728001,115680.0,115670.0,0.00045588]
[1758029299381,1.62336082,115680.0,115670.0,0.00045588]
[1758029300683,1.60713762,115680.0,115670.0,0.00045588]
[1758029300881,1.62335359,115680.0,115670.0,0.00045588]
[1758029302959,0.80011667,115680.0,115670.0,0.00045588]
[1758029303151,1.62335359,115680.0,115670.0,0.00045588]
[1758029303556,1.45035069,115680.0,115670.0,0.00045588]
[1758029303770,1.42683069,115680.0,115670.0,0.00045588]
[1758029303974,1.45079069,115680.0,115670.0,0.00045588]
[1758029325606,0.62755377,115680.0,115670.0,0.00045588]
[1758029325830,1.45079069,115680.0,115670.0,0.00045588]
[1758029326046,0.62755377,115680.0,115670.0,0.00045588]
[1758029326272,1.45079069,115680.0,115670.0,0.00045588]
[1758029326493,1.53729214,115680.0,115670.0,0.00045588]
[1758029326698,1.53729836,115680.0,115670.0,0.00045588]
[1758029326921,1.45079691,115680.0,115670.0,0.00045588]
[1758029330655,1.45079681,115680.0,115670.0,0.00045588]
[1758029332664,0.59842989,115680.0,115670.0,0.00045588]
[1758029332888,1.01210835,115680.0,115670.0,0.00045588]
[1758029333171,1.03968835,115680.0,115670.0,0.00045588]
[1758029333370,1.1261898,115680.0,115670.0,0.00045588]
[1758029334956,1.53780826,115680.0,115670.0,0.00045588]
[1758029339137,0.71457134,115680.0,115670.0,0.00045588]
[1758029339343,1.53780826,115680.0,115670.0,0.00045588]
[1758029340200,1.51550536,115680.0,115670.0,0.00045588]
[1758029343926,1.05813474,115680.0,115670.0,0.00045588]
[1758029344906,1.42400104,115680.0,115670.0,0.00045588]
[1758029345340,1.53653764,115680.0,115670.0,0.00045588]
[1758029345536,1.51050249,115680.0,115670.0,0.00045588]
[1758029350300,1.14463619,115680.0,115670.0,0.00045588]
[1758029355645,1.14463619,115680.0,115670.0,3.813e-05]
[1758029359978,0.77876989,115680.0,115670.0,3.813e-05]
[1758029360190,1.14463619,115680.0,115670.0,3.813e-05]
[1758029360930,0.77876989,115680.0,115670.0,3.813e-05]
[1758029361140,1.14463619,115680.0,115670.0,3.813e-05]
[1758029361785,0.77876989,115680.0,115670.0,3.813e-05]
[1758029361986,1.14463619,115680.0,115670.0,3.813e-05]
[1758029365498,0.77876989,115680.0,115670.0,3.813e-05]
[1758029365708,1.51050249,115680.0,115670.0,3.813e-05]
[1758029365839,1.14463619,115680.0,115670.0,3.813e-05]
[1758029369044,1.12026619,115680.0,115670.0,3.813e-05]
[1758029369300,0.54597509,115680.0,115670.0,3.813e-05]
[1758029369623,0.54597509,115680.0,115670.0,0.00085813]
[1758029369823,0.54597509,115680.0,115670.0,3.813e-05]
[1758029370058,0.57612699,115680.0,115670.0,0.00085813]
[1758029370270,0.60544699,115680.0,115670.0,3.813e-05]
[1758029370628,0.69194844,115680.0,115670.0,3.813e-05]
[1758029374473,1.05781474,115680.0,115670.0,3.813e-05]
[1758029374907,1.14431619,115680.0,115670.0,3.813e-05]
[1758029375735,0.17292062,115660.0,115650.0,0.06253574]
[1758029375920,0.17292062,115660.0,115640.0,0.3659663]
[1758029375921,0.17293558,115650.0,115640.0,0.3667863]
[1758029376114,0.17293558,115650.0,115640.0,0.45328775]
[1758029376320,0.17293558,115650.0,115640.0,0.3667863]
[1758029376515,0.19902579,115650.0,115640.0,0.3667863]
[1758029377267,0.19902579,115650.0,115640.0,0.53973683]
[1758029377660,0.19902579,115650.0,115640.0,0.17387053]
[1758029379308,0.20002579,115650.0,115640.0,0.00092]
[1758029379524,0.17295053,115640.0,115630.0,0.0001]
[1758029379950,0.54077683,115640.0,115630.0,0.06498535]
[1758029380134,0.17296549,115630.0,115620.0,0.00082]
[1758029380366,0.17298045,115620.0,115610.0,0.17391541]
[1758029380560,0.17298045,115620.0,115610.0,0.62628316]
[1758029380772,0.17308045,115620.0,115610.0,0.62628316]
[1758029380973,0.19907646,115620.0,115610.0,0.62628316]
[1758029381583,0.19912363,115620.0,115610.0,0.62628316]
[1758029382323,0.20112363,115620.0,115610.0,0.62628316]
[1758029383048,0.20212363,115620.0,115610.0,0.62628316]
[1758029383416,0.02914318,115620.0,115610.0,0.62628316]
[1758029385289,0.02914318,115620.0,115610.0,0.69014983]
[1758029397487,0.00314717,115620.0,115610.0,0.69014983]
[1758029400824,0.00314717,115620.0,115610.0,0.32428353]
[1758029401034,0.00314717,115620.0,115610.0,0.71532232]
[1758029401245,0.00314717,115620.0,115610.0,0.71614232]
[1758029401668,0.00114717,115620.0,115610.0,0.71614232]
[1758029401879,0.00114717,115620.0,115610.0,1.05614232]
[1758029402316,0.00014717,115620.0,115610.0,1.05614232]
[1758029402539,0.00014717,115620.0,115610.0,1.45714232]
[1758029402763,0.00014717,115620.0,115610.0,1.09127602]
[1758029402978,0.00014717,115620.0,115610.0,1.45714232]
[1758029403395,0.00014717,115620.0,115610.0,1.45614232]
[1758029404008,0.00014717,115620.0,115610.0,1.45714232]
[1758029404403,0.00014717,115620.0,115610.0,1.09127602]
[1758029404647,0.00014717,115620.0,115610.0,1.45714232]
[1758029404858,0.00114717,115620.0,115610.0,1.46014232]
[1758029405671,0.00104717,115620.0,115610.0,1.46014232]
[1758029405877,0.00104717,115620.0,115610.0,1.91759594]
[1758029409145,0.00104717,115620.0,115610.0,0.76593598]
[1758029409348,0.17604762,115620.0,115610.0,0.73912349]
[1758029409558,0.17912762,115620.0,115610.0,0.32746353]
[1758029409804,0.20179762,115620.0,115610.0,0.73912349]
[1758029410005,0.00114717,115620.0,115610.0,0.73912349]
[1758029410224,0.20012254,115620.0,115610.0,0.73912349]
[1758029410428,0.20522254,115620.0,115610.0,0.15446812]
[1758029410637,0.6395525,115620.0,115610.0,0.06786667]
[1758029410851,1.42136436,115620.0,115610.0,0.004]
[1758029411067,1.50786581,115620.0,115610.0,0.004]
[1758029411279,1.09620585,115620.0,115610.0,0.004]
[1758029411484,0.59804444,115620.0,115610.0,0.004]
[1758029411709,0.23229444,115620.0,115610.0,0.41565996]
[1758029411920,0.20522254,115620.0,115610.0,0.58865537]
[1758029412131,0.19912254,115620.0,115610.0,0.58565537]
[1758029412360,0.02614209,115620.0,115610.0,0.58465537]
[1758029412574,0.02914209,115620.0,115610.0,0.67215682]
[1758029412786,0.03114209,115620.0,115610.0,0.67297682]
[1758029413587,0.03114209,115620.0,115610.0,0.7380903]
[1758029414714,0.03114209,115620.0,115610.0,1.14975026]
[1758029414936,0.00514717,115620.0,115610.0,1.14985026]
[1758029415140,0.00514717,115620.0,115610.0,0.7381903]
[1758029415352,0.00514717,115620.0,115610.0,1.15872682]
[1758029415779,0.00514717,115620.0,115610.0,1.18371839]
[1758029415973,0.00014717,115620.0,115610.0,1.18371839]
[1758029416188,0.00114717,115620.0,115610.0,1.18571839]
[1758029416389,0.00114717,115620.0,115610.0,1.18671839]
[1758029416625,0.00104717,115620.0,115610.0,1.52671839]
[1758029418358,0.00104717,115620.0,115610.0,1.92671839]